fUSD/lending_fUSD_20241227
["ID","MTS","AMOUNT","RATE_DAILY","PERIOD"]
[346780083,1735283436645,-500.0,0.00012663,2]
[346780084,1735283436655,-500.0,0.00012663,2]
[346780085,1735283436664,-500.0,0.00012663,2]
[346780086,1735283436674,-500.0,0.00012663,2]
[346780087,1735283436684,-500.0,0.00012663,2]
[346780088,1735283436693,-501.02958867,0.00012663,2]
[346780089,1735283436703,-973.66,0.00012663,2]
[346780090,1735283436712,-1304.76,0.00012663,2]
[346780091,1735283436721,-500.0,0.00012663,2]
[346780092,1735283436731,-500.0,0.00012663,2]
[346780093,1735283436743,-609.76,0.00012663,2]
[346780094,1735283436753,-648.02,0.00012663,2]
[346780095,1735283436763,-500.0,0.00012663,2]
[346780096,1735283436772,-500.0,0.00012663,2]
[346780097,1735283436782,-500.0,0.00012663,2]
[346780098,1735283436792,-802.0,0.00012663,2]
[346780099,1735283436802,-500.0,0.00012663,2]
[346780100,1735283436813,-500.0,0.00012663,2]
[346780101,1735283436822,-500.0,0.00012663,2]
[346780102,1735283436833,-767.8,0.00012663,2]
[346780103,1735283436843,-1285.72,0.00012663,2]
[346780104,1735283436853,-500.0,0.00012663,2]
[346780105,1735283436863,-500.0,0.00012663,2]
[346780106,1735283436873,-500.0,0.00012663,2]
[346780107,1735283436885,-11037.36,0.00012663,2]
[346780108,1735283436894,-500.0,0.00012663,2]
[346780109,1735283436904,-500.0,0.00012663,2]
[346780110,1735283436913,-500.0,0.00012663,2]
[346780111,1735283436923,-500.0,0.00012663,2]
[346780112,1735283436932,-500.0,0.00012663,2]
[346780113,1735283436942,-1886.15,0.00012663,2]
[346780114,1735283436951,-558.21,0.00012663,2]
[346780115,1735283436961,-500.0,0.00012663,2]
[346780116,1735283436971,-500.0,0.00012663,2]
[346780117,1735283436981,-500.0,0.00012663,2]
[346780118,1735283436991,-11103.65,0.00012663,2]
[346780119,1735283437000,-170.18329403,0.00012663,2]
[346780120,1735283437010,-500.0,0.00012663,2]
[346780121,1735283437021,-500.0,0.00012663,2]
[346780122,1735283437031,-500.0,0.00012663,2]
[346780123,1735283437041,-988.04,0.00012663,2]
[346780124,1735283437051,-4566.08,0.00012663,2]
[346780125,1735283437060,-558.68,0.00012663,2]
[346780126,1735283437070,-500.0,0.00012663,2]
[346780127,1735283437080,-662.06,0.00012663,2]
[346780128,1735283437090,-500.0,0.00012663,2]
[346780129,1735283437099,-572.81,0.00012663,2]
[346780130,1735283437109,-500.0,0.00012663,2]
[346780131,1735283437119,-546.19374013,0.00012663,2]
[346780132,1735283437128,-500.0,0.00012663,2]
[346780133,1735283437138,-500.0,0.00012663,2]
[346780134,1735283437147,-500.0,0.00012663,2]
[346780135,1735283437158,-500.0,0.00012663,2]
[346780136,1735283437167,-500.0,0.00012663,2]
[346780137,1735283437177,-736.63,0.00012663,2]
[346780138,1735283437187,-500.0,0.00012663,2]
[346780139,1735283437196,-500.0,0.00012663,2]
[346780140,1735283437206,-500.0,0.00012663,2]
[346780141,1735283437216,-500.0,0.00012663,2]
[346780142,1735283437226,-500.0,0.00012663,2]
[346780143,1735283437236,-500.0,0.00012663,2]
[346780144,1735283437245,-500.0,0.00012663,2]
[346780145,1735283437255,-764.47,0.00012663,2]
[346780146,1735283437264,-500.0,0.00012663,2]
[346780147,1735283437273,-500.0,0.00012663,2]
[346780148,1735283437283,-2570.63,0.00012663,2]
[346780149,1735283437293,-1863.32,0.00012663,2]
[346780150,1735283437303,-500.0,0.00012663,2]
[346780151,1735283437312,-500.0,0.00012663,2]
[346780152,1735283437322,-500.0,0.00012663,2]
[346780153,1735283437332,-500.0,0.00012663,2]
[346780154,1735283437342,-500.0,0.00012663,2]
[346780155,1735283437352,-500.0,0.00012663,2]
[346780156,1735283437362,-500.16,0.00012663,2]
[346780157,1735283437372,-500.0,0.00012663,2]
[346780158,1735283437382,-4273.76,0.00012663,2]
[346780159,1735283437392,-1442.03,0.00012663,2]
[346780160,1735283437402,-500.0,0.00012663,2]
[346780161,1735283437411,-500.0,0.00012663,2]
[346780162,1735283437421,-500.0,0.00012663,2]
[346780163,1735283437431,-500.0,0.00012663,2]
[346780164,1735283437442,-1406.45,0.00012664,2]
[346780165,1735283437455,-500.0,0.00012664,2]
[346780166,1735283437467,-971.03,0.00012664,2]
[346780167,1735283437477,-677.85,0.00012664,2]
[346780169,1735283437487,-734.61,0.00012664,2]
[346780170,1735283437496,-772.97,0.00012664,2]
[346780171,1735283437506,-971.39,0.00012664,2]
[346780172,1735283437516,-700.39,0.00012664,2]
[346780173,1735283437525,-1119.7,0.00012664,2]
[346780174,1735283437535,-1259.09,0.00012664,2]
[346780175,1735283437548,-617.18,0.00012664,2]
[346780176,1735283437558,-599.97,0.00012664,2]
[346780177,1735283437568,-970.8,0.00012664,2]
[346780178,1735283437579,-1411.78,0.00012664,2]
[346780179,1735283437589,-1089.09,0.00012664,2]
[346780180,1735283437599,-641.27,0.00012664,2]
[346780181,1735283437608,-500.0,0.00012664,2]
[346780182,1735283437619,-1148.47,0.00012664,2]
[346780183,1735283437629,-1181.15,0.00012664,2]
[346780184,1735283437638,-735.39,0.00012664,2]
[346780185,1735283437648,-500.0,0.00012664,2]
[346780186,1735283437658,-500.0,0.00012664,2]
[346780187,1735283437668,-1036.51,0.00012664,2]
[346780188,1735283437677,-500.0,0.00012664,2]
[346780189,1735283437687,-718.88,0.00012664,2]
[346780190,1735283437697,-657.13,0.00012664,2]
[346780191,1735283437707,-349.30456311,0.00012664,2]
[346780192,1735283437724,-150.69543689,0.00012664,2]
[346780193,1735283437736,-766.72,0.00012664,2]
[346780194,1735283437746,-859.0,0.00012664,2]
[346780195,1735283437756,-766.46,0.00012664,2]
[346780196,1735283437765,-4383.98,0.00012664,2]
[346780197,1735283437775,-519.97,0.00012664,2]
[346780198,1735283437784,-827.56,0.00012664,2]
[346780199,1735283437796,-1047.69,0.00012664,2]
[346780200,1735283437807,-952.99,0.00012664,2]
[346780201,1735283437817,-615.32,0.00012664,2]
[346780202,1735283437826,-2974.66,0.00012664,2]
[346780203,1735283437836,-500.0,0.00012664,2]
[346780204,1735283437845,-500.0,0.00012664,2]
[346780205,1735283437855,-1424.56,0.00012664,2]
[346780206,1735283437864,-772.15,0.00012664,2]
[346780207,1735283437873,-500.0,0.00012664,2]
[346780208,1735283437883,-500.0,0.00012664,2]
[346780209,1735283437892,-500.0,0.00012664,2]
[346780210,1735283437902,-1047.5,0.00012664,2]
[346780211,1735283437912,-500.0,0.00012664,2]
[346780212,1735283437921,-7862.95,0.00012664,2]
[346780213,1735283437931,-500.0,0.00012664,2]
[346780214,1735283437940,-965.6,0.00012664,2]
[346780215,1735283437950,-504.14,0.00012664,2]
[346780216,1735283437959,-500.0,0.00012664,2]
[346780217,1735283437968,-4723.02,0.00012664,2]
[346780218,1735283437977,-859.83,0.00012664,2]
[346780219,1735283437986,-684.06,0.00012664,2]
[346780220,1735283437996,-500.0,0.00012664,2]
[346780221,1735283438005,-1134.54,0.00012664,2]
[346780222,1735283438014,-744.59,0.00012664,2]
[346780223,1735283438024,-18688.73,0.00012664,2]
[346780224,1735283438034,-748.23,0.00012664,2]
[346780225,1735283438043,-960.4,0.00012664,2]
[346780228,1735283438120,-571.66,0.00012664,2]
[346780229,1735283438130,-13085.34,0.00012664,2]
[346780230,1735283438139,-710.63,0.00012664,2]
[346780231,1735283438149,-500.0,0.00012664,2]
[346780232,1735283438159,-848.83,0.00012664,2]
[346780233,1735283438168,-500.0,0.00012664,2]
[346780234,1735283438178,-1412.9,0.00012664,2]
[346780237,1735283438187,-526.98,0.00012664,2]
[346780239,1735283438197,-500.0,0.00012664,2]
[346780241,1735283438207,-618.96,0.00012664,2]
[346780243,1735283438215,-1400.04,0.00012664,2]
[346780245,1735283438225,-948.85,0.00012664,2]
[346780247,1735283438235,-1071.23,0.00012664,2]
[346780249,1735283438244,-580.08,0.00012664,2]
[346780251,1735283438253,-873.02,0.00012664,2]
[346780253,1735283438262,-500.0,0.00012664,2]
[346780255,1735283438272,-500.0,0.00012664,2]
[346780257,1735283438282,-500.0,0.00012664,2]
[346780259,1735283438292,-500.0,0.00012664,2]
[346780261,1735283438304,-151.0,0.00012664,2]
[346780263,1735283438314,-620.45,0.00012664,2]
[346780265,1735283438324,-597.36,0.00012664,2]
[346780267,1735283438333,-20246.24,0.00012664,2]
[346780270,1735283438342,-151.0,0.00012664,2]
[346780272,1735283438363,-151.0,0.00012664,2]
[346780274,1735283438374,-500.0,0.00012664,2]
[346780276,1735283438384,-151.0,0.00012664,2]
[346780278,1735283438395,-500.0,0.00012664,2]
[346780280,1735283438405,-669.35,0.00012664,2]
[346780282,1735283438415,-500.0,0.00012664,2]
[346780284,1735283438425,-1020.86,0.00012664,2]
[346780286,1735283438435,-1364.46,0.00012664,2]
[346780289,1735283438446,-1363.18,0.00012664,2]
[346780291,1735283438455,-151.0,0.00012664,2]
[346780293,1735283438465,-500.0,0.00012664,2]
[346780295,1735283438475,-500.0,0.00012664,2]
[346780297,1735283438485,-800.97,0.00012664,2]
[346780299,1735283438495,-714.13,0.00012664,2]
[346780301,1735283438506,-500.0,0.00012673,2]
[346780302,1735283438516,-500.0,0.00012673,2]
[346780304,1735283438526,-500.0,0.00012673,2]
[346780306,1735283438536,-161.52548039,0.00012673,2]
[346780308,1735283438549,-500.0,0.00012673,2]
[346780311,1735283438559,-500.0,0.00012673,2]
[346780313,1735283438569,-3859.51057548,0.00012675,2]
[346780315,1735283438579,-500.0,0.0001268,2]
[346780317,1735283438589,-211.36363632,0.00012681,2]
[346780319,1735283438599,-500.0,0.00012681,2]
[346780321,1735283438609,-500.0,0.00012681,2]
[346780323,1735283438619,-500.0,0.00012681,2]
[346780325,1735283438629,-500.0,0.00012681,2]
[346780327,1735283438639,-500.0,0.00012681,2]
[346780329,1735283438648,-517.07,0.00012681,2]
[346780331,1735283438658,-841.49,0.00012681,2]
[346780333,1735283438667,-500.0,0.00012681,2]
[346780335,1735283438676,-500.0,0.00012681,2]
[346780336,1735283438686,-500.0,0.00012681,2]
[346780339,1735283438695,-500.0,0.00012681,2]
[346780341,1735283438705,-500.0,0.00012681,2]
[346780343,1735283438715,-500.0,0.00012681,2]
[346780345,1735283438724,-500.0,0.00012681,2]
[346780346,1735283438736,-500.0,0.00012681,2]
[346780348,1735283438746,-639.27,0.00012681,2]
[346780351,1735283438757,-500.0,0.00012681,2]
[346780353,1735283438766,-500.0,0.00012681,2]
[346780355,1735283438776,-500.0,0.00012681,2]
[346780356,1735283438786,-500.0,0.00012681,2]
[346780357,1735283438799,-500.0,0.00012681,2]
[346780358,1735283438809,-369.76126535,0.00012681,2]
[346780359,1735283438819,-500.0,0.00012681,2]
[346780360,1735283438830,-500.0,0.00012681,2]
[346780361,1735283438840,-574.03,0.00012681,2]
[346780362,1735283438850,-500.0,0.00012681,2]
[346780363,1735283438860,-500.0,0.00012681,2]
[346780364,1735283438869,-500.0,0.00012681,2]
[346780365,1735283438879,-500.0,0.00012681,2]
[346780366,1735283438889,-716.41,0.00012681,2]
[346780367,1735283438899,-500.0,0.00012681,2]
[346780368,1735283438909,-467.09790978,0.00012681,2]
[346780369,1735283438919,-225.45486759,0.00012681,2]
[346780370,1735283438929,-500.0,0.00012681,2]
[346780371,1735283438938,-500.0,0.00012681,2]
[346780372,1735283438947,-500.0,0.00012681,2]
[346780373,1735283438957,-500.0,0.00012681,2]
[346780374,1735283438966,-500.0,0.00012681,2]
[346780375,1735283438976,-500.0,0.00012681,2]
[346780376,1735283438985,-500.0,0.00012681,2]
[346780377,1735283438994,-500.0,0.00012681,2]
[346780378,1735283439004,-500.0,0.00012681,2]
[346780379,1735283439014,-686.08,0.00012681,2]
[346780380,1735283439023,-500.0,0.00012681,2]
[346780381,1735283439033,-577.58,0.00012681,2]
[346780382,1735283439044,-595.63,0.00012681,2]
[346780383,1735283439054,-500.0,0.00012681,2]
[346780384,1735283439063,-500.0,0.00012681,2]
[346780385,1735283439073,-500.0,0.00012681,2]
[346780386,1735283439083,-500.0,0.00012681,2]
[346780387,1735283439093,-500.0,0.00012681,2]
[346780388,1735283439103,-547.2,0.00012681,2]
[346780389,1735283439112,-500.0,0.00012681,2]
[346780390,1735283439122,-500.0,0.00012681,2]
[346780391,1735283439131,-500.0,0.00012681,2]
[346780392,1735283439141,-500.0,0.00012681,2]
[346780393,1735283439151,-500.0,0.00012681,2]
[346780394,1735283439160,-500.0,0.00012681,2]
[346780395,1735283439170,-500.01,0.00012681,2]
[346780396,1735283439180,-443.22912515,0.00012681,2]
[346780397,1735283439189,-500.0,0.00012681,2]
[346780398,1735283439199,-500.0,0.00012681,2]
[346780399,1735283439209,-500.0,0.00012681,2]
[346780400,1735283439218,-500.0,0.00012681,2]
[346780401,1735283439228,-500.0,0.00012681,2]
[346780402,1735283439238,-500.0,0.00012681,2]
[346780403,1735283439248,-500.0,0.00012681,2]
[346780404,1735283439257,-500.0,0.00012681,2]
[346780405,1735283439267,-500.0,0.00012681,2]
[346780406,1735283439278,-500.0,0.00012681,2]
[346780407,1735283439288,-500.0,0.00012681,2]
[346780408,1735283439300,-705.47,0.00012681,2]
[346780409,1735283439311,-500.0,0.00012681,2]
[346780410,1735283439320,-500.0,0.00012681,2]
[346780411,1735283439330,-500.0,0.00012681,2]
[346780412,1735283439340,-665.7,0.00012681,2]
[346780413,1735283439350,-500.0,0.00012681,2]
[346780414,1735283439360,-500.0,0.00012681,2]
[346780415,1735283439369,-536.75,0.00012681,2]
[346780416,1735283439379,-521.04069506,0.00012681,2]
[346780417,1735283439389,-576.1,0.00012681,2]
[346780418,1735283439399,-500.0,0.00012681,2]
[346780419,1735283439409,-500.0,0.00012681,2]
[346780420,1735283439419,-500.0,0.00012681,2]
[346780421,1735283439428,-500.0,0.00012681,2]
[346780422,1735283439439,-500.0,0.00012681,2]
[346780423,1735283439448,-500.0,0.00012681,2]
[346780424,1735283439458,-500.0,0.00012681,2]
[346780425,1735283439468,-733.53,0.00012681,2]
[346780426,1735283439478,-500.0,0.00012681,2]
[346780427,1735283439488,-500.0,0.00012681,2]
[346780428,1735283439498,-500.0,0.00012681,2]
[346780429,1735283439507,-803.96,0.00012681,2]
[346780430,1735283439517,-500.0,0.00012681,2]
[346780431,1735283439527,-480.91349404,0.00012681,2]
[346780432,1735283439537,-500.0,0.00012681,2]
[346780433,1735283439548,-500.0,0.00012681,2]
[346780434,1735283439559,-500.0,0.00012681,2]
[346780435,1735283439568,-568.41,0.00012681,2]
[346780436,1735283439578,-500.0,0.00012681,2]
[346780437,1735283439587,-505.72030203,0.00012681,2]
[346780438,1735283439598,-500.0,0.00012681,2]
[346780439,1735283439607,-500.0,0.00012681,2]
[346780440,1735283439617,-566.02,0.00012681,2]
[346780441,1735283439627,-500.0,0.00012681,2]
[346780442,1735283439637,-500.0,0.00012681,2]
[346780443,1735283439647,-500.0,0.00012681,2]
[346780444,1735283439657,-500.0,0.00012681,2]
[346780445,1735283439666,-500.0,0.00012681,2]
[346780446,1735283439677,-500.0,0.00012681,2]
[346780447,1735283439687,-620.05,0.00012681,2]
[346780448,1735283439697,-500.0,0.00012681,2]
[346780449,1735283439706,-667.4,0.00012681,2]
[346780450,1735283439716,-233.59530754,0.00012681,2]
[346780451,1735283439725,-500.0,0.00012681,2]
[346780452,1735283439738,-500.0,0.00012681,2]
[346780453,1735283439747,-500.0,0.00012681,2]
[346780454,1735283439757,-500.0,0.00012681,2]
[346780455,1735283439767,-510.82,0.00012681,2]
[346780456,1735283439777,-500.0,0.00012681,2]
[346780457,1735283439786,-500.0,0.00012681,2]
[346780458,1735283439797,-745.59,0.00012681,2]
[346780459,1735283439807,-740.79,0.00012681,2]
[346780460,1735283439817,-817.42,0.00012681,2]
[346780461,1735283439827,-500.0,0.00012681,2]
[346780462,1735283439836,-388.09210477,0.00012681,2]
[346780464,1735283440316,-138.94925996,0.00012681,2]
[346780465,1735283440326,-500.0,0.00012681,2]
[346780466,1735283440336,-310.99270686,0.00012681,2]
[346780467,1735283440347,-189.00729314,0.00012681,2]
[346780468,1735283440357,-361.05074004,0.00012681,2]
[346780469,1735283440369,-138.94925996,0.00012681,2]
[346780470,1735283440379,-595.64,0.00012681,2]
[346780471,1735283440389,-500.0,0.00012681,2]
[346780472,1735283440398,-500.0,0.00012681,2]
[346780473,1735283440408,-1160.33,0.00012681,2]
[346780474,1735283440417,-500.0,0.00012681,2]
[346780475,1735283440426,-500.0,0.00012681,2]
[346780476,1735283440435,-500.0,0.00012681,2]
[346780477,1735283440445,-151.0,0.00012681,2]
[346780478,1735283440455,-151.0,0.00012681,2]
[346780479,1735283440464,-151.0,0.00012681,2]
[346780480,1735283440473,-500.0,0.00012681,2]
[346780481,1735283440483,-151.0,0.00012681,2]
[346780482,1735283440492,-500.0,0.00012681,2]
[346780483,1735283440502,-500.0,0.00012681,2]
[346780484,1735283440511,-151.0,0.00012681,2]
[346780485,1735283440522,-500.0,0.00012681,2]
[346780486,1735283440531,-524.41,0.00012681,2]
[346780487,1735283440540,-500.0,0.00012681,2]
[346780488,1735283440551,-678.15,0.00012681,2]
[346780489,1735283440561,-677.57,0.00012681,2]
[346780490,1735283440571,-151.0,0.00012681,2]
[346780491,1735283440580,-500.0,0.00012681,2]
[346780492,1735283440589,-190.953354,0.00012681,2]
[346780493,1735283440599,-190.953354,0.00012681,2]
[346780494,1735283440609,-500.0,0.00012681,2]
[346780495,1735283440618,-573.52,0.00012681,2]
[346780496,1735283440628,-683.1,0.00012681,2]
[346780497,1735283440638,-1003.13,0.00012681,2]
[346780498,1735283440647,-500.0,0.00012681,2]
[346780499,1735283440657,-500.0,0.00012681,2]
[346780500,1735283440667,-500.0,0.00012681,2]
[346780501,1735283440677,-500.0,0.00012681,2]
[346780502,1735283440686,-500.0,0.00012681,2]
[346780503,1735283440695,-515.0,0.00012681,2]
[346780504,1735283440705,-500.0,0.00012681,2]
[346780505,1735283440714,-500.0,0.00012681,2]
[346780506,1735283440723,-694.1,0.00012681,2]
[346780507,1735283440734,-500.0,0.00012681,2]
[346780508,1735283440745,-150.2,0.00012681,2]
[346780509,1735283440755,-169.81221272,0.000127,2]
[346780510,1735283440765,-12795.01807474,0.000127,2]
[346780511,1735283440777,-519.93048786,0.000127,2]
[346780512,1735283440810,-7350.15865238,0.000127,2]
[346780513,1735283440822,-612.23105833,0.000127,2]
[346780514,1735283440833,-89957.58664282,0.000127,2]
[346780515,1735283441877,-1910.04,0.00012662,2]
[346780516,1735283441888,-1698.44,0.00012662,2]
[346780517,1735283441898,-500.0,0.00012663,2]
[346780518,1735283441907,-500.0,0.00012663,2]
[346780519,1735283441917,-12222.59358783,0.00012675,2]
[346780520,1735283441926,-500.0,0.0001268,2]
[346780521,1735283441936,-500.0,0.0001268,2]
[346780522,1735283441947,-484.47738864,0.0001268,2]
[346780523,1735283441956,-9999.75801224,0.000127,2]
[346780524,1735283441982,-649.66,0.00012663,2]
[346780525,1735283441992,-71915.40582902,0.000127,2]
[346780526,1735283442004,-9651.10000001,0.000127,2]
[346780527,1735283442026,-654.06454835,0.000127,2]
[346780528,1735283442039,-1360.72366522,0.000127,2]
[346780529,1735283442341,-92572.77525983,0.000127,2]
[346780530,1735283442354,-142051.83928987,0.000127,2]
[346780531,1735283442364,-151.0,0.000127,2]
[346780532,1735283442374,-151.0,0.000127,2]
[346780533,1735283442385,-151.0,0.000127,2]
[346780534,1735283442396,-151.0,0.000127,2]
[346780535,1735283442407,-151.0,0.000127,2]
[346780536,1735283442418,-151.0,0.000127,2]
[346780537,1735283442428,-151.0,0.000127,2]
[346780538,1735283442438,-151.0,0.000127,2]
[346780539,1735283442448,-190.953354,0.000127,2]
[346780540,1735283442458,-190.953354,0.000127,2]
[346780541,1735283442468,-173.344881,0.000127,2]
[346780542,1735283442479,-151.0,0.000127,2]
[346780543,1735283442489,-151.0,0.000127,2]
[346780545,1735283442500,-151.0,0.000127,2]
[346780546,1735283442510,-3859.51057548,0.00012712,2]
[346780547,1735283442520,-12222.59358783,0.00012713,2]
[346780549,1735283442530,-1178.3,0.00012716,2]
[346780550,1735283442540,-1024.84,0.00012716,2]
[346780551,1735283442551,-500.0,0.00012716,2]
[346780552,1735283442561,-4889.27,0.00012716,2]
[346780553,1735283442571,-1084.09,0.00012716,2]
[346780554,1735283442582,-500.0,0.00012716,2]
[346780555,1735283442592,-2202.9,0.00012716,2]
[346780556,1735283442602,-4348.93,0.00012716,2]
[346780557,1735283442613,-169.81221272,0.0001274,2]
[346780558,1735283442623,-150.56,0.00012744,2]
[346780559,1735283442633,-150.0,0.00012744,2]
[346780560,1735283442643,-150.0,0.00012744,2]
[346780561,1735283442653,-3859.51057548,0.0001275,2]
[346780562,1735283442663,-500.0,0.00012764,2]
[346780564,1735283442673,-500.0,0.00012765,2]
[346780566,1735283442683,-502.53443461,0.00012765,2]
[346780567,1735283442692,-2737.15,0.00012765,2]
[346780568,1735283442703,-151.0,0.00012765,2]
[346780569,1735283442712,-202.980963,0.00012765,2]
[346780570,1735283442722,-151.0,0.00012765,2]
[346780571,1735283442735,-151.0,0.00012765,2]
[346780572,1735283442747,-151.0,0.00012765,2]
[346780573,1735283442756,-151.0,0.00012765,2]
[346780574,1735283442767,-880.36,0.00012765,2]
[346780575,1735283442778,-151.0,0.00012765,2]
[346780576,1735283442788,-500.0,0.00012765,2]
[346780577,1735283442799,-567.27,0.00012765,2]
[346780578,1735283442809,-711.1,0.00012765,2]
[346780579,1735283442820,-1167.26,0.00012765,2]
[346780580,1735283442831,-752.43,0.00012765,2]
[346780581,1735283442841,-666.16,0.00012765,2]
[346780582,1735283442851,-759.88,0.00012765,2]
[346780583,1735283442862,-151.0,0.00012765,2]
[346780584,1735283442872,-500.0,0.00012765,2]
[346780585,1735283442882,-1308.51,0.00012765,2]
[346780586,1735283442893,-228.861318,0.00012765,2]
[346780587,1735283442903,-151.0,0.00012765,2]
[346780588,1735283442913,-151.0,0.00012765,2]
[346780589,1735283442923,-723.54,0.00012765,2]
[346780590,1735283442932,-151.0,0.00012765,2]
[346780591,1735283442942,-151.0,0.00012765,2]
[346780592,1735283442953,-158.668765,0.00012765,2]
[346780593,1735283442962,-500.0,0.00012765,2]
[346780594,1735283442972,-158.668765,0.00012765,2]
[346780595,1735283442982,-954.64,0.00012765,2]
[346780596,1735283442992,-151.0,0.00012765,2]
[346780597,1735283443002,-629.24,0.00012765,2]
[346780599,1735283443012,-500.0,0.00012765,2]
[346780601,1735283443022,-1299.86,0.00012765,2]
[346780602,1735283443032,-500.0,0.00012765,2]
[346780603,1735283443042,-2206.43,0.00012765,2]
[346780604,1735283443054,-1315.11,0.00012765,2]
[346780605,1735283443063,-500.0,0.00012765,2]
[346780606,1735283443074,-519.63,0.00012765,2]
[346780607,1735283443083,-2446.77,0.00012765,2]
[346780608,1735283443094,-672.58,0.00012765,2]
[346780609,1735283443104,-970.56,0.00012765,2]
[346780610,1735283443114,-712.03,0.00012765,2]
[346780612,1735283443124,-500.0,0.00012765,2]
[346780613,1735283443133,-681.05,0.00012765,2]
[346780614,1735283443143,-500.0,0.00012765,2]
[346780615,1735283443153,-3184.39,0.00012765,2]
[346780616,1735283443163,-500.0,0.00012765,2]
[346780617,1735283443173,-191.45211,0.00012765,2]
[346780618,1735283443183,-151.0,0.00012765,2]
[346780619,1735283443192,-1194.42,0.00012765,2]
[346780620,1735283443202,-151.0,0.00012765,2]
[346780621,1735283443212,-996.63,0.00012765,2]
[346780622,1735283443222,-151.0,0.00012765,2]
[346780623,1735283443232,-151.0,0.00012765,2]
[346780624,1735283443242,-500.0,0.00012765,2]
[346780625,1735283443252,-1640.58,0.00012765,2]
[346780626,1735283443262,-726.66,0.00012765,2]
[346780627,1735283443557,-522.19,0.00012765,2]
[346780628,1735283443568,-3475.38,0.00012765,2]
[346780629,1735283443577,-500.0,0.00012765,2]
[346780630,1735283443587,-151.0,0.00012765,2]
[346780631,1735283443596,-500.0,0.00012765,2]
[346780632,1735283443606,-11474.42,0.00012765,2]
[346780633,1735283443615,-626.59,0.00012765,2]
[346780634,1735283443625,-151.0,0.00012765,2]
[346780635,1735283443635,-6257.41,0.00012765,2]
[346780636,1735283443645,-1064.41,0.00012765,2]
[346780637,1735283443655,-190.953354,0.00012765,2]
[346780638,1735283443664,-190.953354,0.00012765,2]
[346780639,1735283443673,-500.0,0.00012765,2]
[346780640,1735283443683,-500.0,0.00012765,2]
[346780641,1735283443692,-598.95,0.00012765,2]
[346780642,1735283443702,-500.0,0.00012765,2]
[346780643,1735283443711,-151.0,0.00012765,2]
[346780644,1735283443721,-151.0,0.00012765,2]
[346780645,1735283443730,-3301.32,0.00012765,2]
[346780646,1735283443743,-500.0,0.00012765,2]
[346780647,1735283443753,-5758.18,0.00012765,2]
[346780648,1735283443762,-3131.7,0.00012765,2]
[346780649,1735283443771,-2969.99,0.00012765,2]
[346780650,1735283443782,-584.31,0.00012765,2]
[346780651,1735283443791,-3557.83,0.00012765,2]
[346780652,1735283443800,-1040.72160029,0.00012766,3]
[346780653,1735283443810,-500.0,0.00012766,2]
[346780654,1735283443820,-686.14,0.00012766,2]
[346780655,1735283443829,-503.39304087,0.00012766,2]